bitfinex-derivatives/quotes_SOLF0:USTF0_20220104
["timestamp","ask_amount","ask_price","bid_price","bid_amount"]
[1641304430799,3.27904791,171.97,171.96,0.65578987]
[1641304430998,3.27904791,171.97,171.96,3.65578987]
[1641304431399,3.27904791,172.0,171.96,0.65578987]
[1641304431598,2.53305715,172.01,171.97,3.0]
[1641304432003,49.24704521,172.04,171.96,0.65578987]
[1641304432203,3.27877899,172.0,171.98,0.65578987]
[1641304432400,3.27877899,172.0,171.93,3.0]
[1641304432600,3.27877899,172.0,171.86,12.14641928]
[1641304432800,5.203,172.0,171.94,0.65582811]
[1641304433200,5.203,172.0,171.89,3.0]
[1641304433401,5.203,172.0,171.9,3.0]
[1641304433804,3.27963272,171.99,171.9,3.65592654]
[1641304434003,3.27963272,171.99,171.9,0.65592654]
[1641304434203,3.27963272,171.99,171.91,0.65592654]
[1641304434402,3.27963272,171.99,171.93,3.0]
[1641304434603,3.27963272,171.99,171.92,3.0]
[1641304434805,3.27963272,172.04,171.91,8.676]
[1641304435104,49.24704521,172.03,171.91,8.676]
[1641304435305,49.24704521,172.03,171.92,3.65592654]
[1641304435705,3.27963272,172.02,171.93,0.65592654]
[1641304436109,3.27963272,172.02,171.9,3.0]
[1641304436308,3.27963272,172.02,171.89,3.0]
[1641304436806,3.27963272,172.02,171.9,0.65592654]
[1641304437207,22.95680182,172.03,171.88,7.196]
[1641304437408,72.20384703,172.03,171.88,7.196]
[1641304437607,72.20384703,172.03,171.89,0.65592654]
[1641304438207,22.95680182,172.02,171.89,0.65592654]
[1641304438410,72.20384703,172.02,171.89,0.65592654]
[1641304439010,3.27963272,172.01,171.89,3.65592654]
[1641304439209,3.27963272,172.01,171.91,3.0]
[1641304439411,3.27963272,172.01,171.9,3.0]
[1641304439611,3.27963272,172.01,171.9,0.65592654]
[1641304440310,3.27963272,172.01,171.94,3.0]
[1641304440513,3.27963272,172.01,171.94,5.404]
[1641304440915,3.27963272,172.02,171.95,0.65592654]
[1641304441417,22.95357938,172.05,171.95,0.65592654]
[1641304442013,72.20062459,172.05,171.96,3.0]
[1641304442213,72.20062459,172.05,171.95,4.719]
[1641304442412,3.27963272,172.04,171.97,3.65592654]
[1641304442811,12.29481494,171.98,171.97,3.0]
[1641304443413,15.57444766,171.98,171.97,3.0]
[1641304443814,15.57444766,171.98,171.9,26.26099184]
[1641304444017,15.57444766,171.98,171.9,29.26099184]
[1641304444215,15.57444766,171.98,171.96,3.0]
[1641304444417,3.27963272,171.97,171.92,12.29481494]
[1641304444616,3.27963272,171.97,171.96,3.0]
[1641304444816,12.29403876,172.0,171.96,3.0]
[1641304445018,12.29403876,172.0,171.92,12.29481494]
[1641304445216,3.27963272,171.99,171.92,12.29481494]
[1641304445418,3.27963272,171.99,171.96,3.0]
[1641304445619,15.57367148,171.99,171.92,3.0]
[1641304445818,20.07067148,171.99,171.91,12.29481494]
[1641304446217,3.27963272,171.98,171.91,12.29481494]
[1641304446723,12.29407269,171.96,171.88,12.29481494]
[1641304447519,3.27963272,171.95,171.88,12.29481494]
[1641304448320,12.29407269,171.92,171.91,3.0]
[1641304448522,12.29407269,171.92,171.85,5.511]
[1641304448720,15.57370541,171.92,171.85,5.511]
[1641304448920,15.57370541,171.92,171.88,6.0]
[1641304449222,3.27963272,171.92,171.91,3.0]
[1641304449423,12.29643185,171.93,171.91,6.47]
[1641304450224,12.29561354,171.94,171.91,6.47]
[1641304450421,3.27978838,171.92,171.91,6.47]
[1641304450621,3.27978838,171.92,171.88,6.0]
[1641304450820,3.27978838,171.93,171.88,6.0]
[1641304451422,15.57643955,171.93,171.88,6.0]
[1641304452023,3.27978838,171.92,171.88,6.0]
[1641304452425,12.29665117,171.91,171.88,6.0]
[1641304453025,12.29665117,171.91,171.9,3.0]
[1641304453323,32.78376253,171.95,171.9,10.988]
[1641304453522,32.78376253,171.92,171.9,4.988]
[1641304453722,20.76876253,171.92,171.91,3.0]
[1641304454523,49.24704521,171.97,171.91,3.0]
[1641304454723,20.31630944,172.04,171.9,4.988]
[1641304455323,3.27897142,172.03,171.89,50.2144]
[1641304455724,3.27897142,172.03,171.94,3.0]
[1641304455926,3.27897142,172.03,171.93,6.785]
[1641304456123,22.95135793,172.03,171.93,6.785]
[1641304457025,49.24704521,172.02,171.93,6.785]
[1641304457224,27.66479,171.99,171.93,6.785]
[1641304457523,27.66479,171.99,171.95,3.0]
[1641304457723,27.66479,171.99,171.94,3.0]
[1641304457922,3.27897142,171.98,171.96,0.65571647]
[1641304458525,11.39384051,171.98,171.91,3.0]
[1641304458725,11.39384051,171.98,171.9,0.65571647]
[1641304458925,11.39384051,171.98,171.89,27.66479]
[1641304458926,3.27897142,171.97,171.92,0.65571647]
[1641304459325,3.27897142,171.97,171.9,0.65571647]
[1641304459526,3.27897142,171.97,171.93,3.0]
[1641304459726,3.27897142,171.97,171.9,0.65571647]
[1641304459924,3.27897142,171.97,171.94,0.65571647]
[1641304460126,3.27897142,171.97,171.94,7.45271647]
[1641304460328,3.27897142,171.97,171.94,6.797]
[1641304460627,3.27897142,171.97,171.89,3.0]
[1641304460926,3.27897142,171.97,171.88,6.0]
[1641304461126,3.27897142,171.97,171.9,0.65589429]
[1641304461326,27.66479,171.92,171.9,0.65589429]
[1641304461626,27.66479,171.92,171.9,3.0]
[1641304462127,27.66479,171.92,171.91,0.65589429]
[1641304462925,30.94394117,171.92,171.91,0.65589429]
[1641304463327,30.94394117,171.92,171.89,0.65589429]
[1641304463928,3.27915117,171.91,171.89,0.65589429]
[1641304464530,7.88115117,171.91,171.89,0.65589429]
[1641304464929,7.88115117,171.91,171.88,6.0]
[1641304465329,27.66479,171.89,171.88,6.0]
[1641304465930,27.66479,171.89,171.88,9.0]
[1641304466129,30.94446971,171.89,171.88,6.65593594]
[1641304466331,32.74606384,171.89,171.88,6.65593594]
[1641304466732,29.46638413,171.89,171.88,6.65593594]
[1641304467131,32.74606907,171.89,171.88,6.65593594]
[1641304467631,29.46638413,171.89,171.88,6.65593594]
[1641304468934,29.46638413,171.89,171.88,13.05369085]
[1641304469632,29.46638413,171.89,171.88,10.75551564]
[1641304469832,29.46638413,171.89,171.88,6.65593594]
[1641304470234,32.746325,171.89,171.88,6.65593594]
[1641304470433,37.941325,171.89,171.88,6.65593594]
[1641304471136,34.66138413,171.89,171.88,6.65593594]
[1641304471537,34.66138413,171.89,171.88,3.594e-05]
[1641304471737,37.94137893,171.89,171.88,3.594e-05]
[1641304472036,37.94137893,171.89,171.86,4.0995797]
[1641304472538,34.66138413,171.89,171.86,4.0995797]
[1641304472937,29.46638413,171.89,171.87,0.65596332]
[1641304473136,1.80159413,171.88,171.87,0.65596332]
[1641304473538,1.80159413,171.88,171.82,2.29804583]
[1641304473737,1.80159413,171.88,171.79,11.86125086]
[1641304473938,1.80159413,171.88,171.79,8.86125086]
[1641304474940,3.28094161,171.87,171.8,0.65618832]
[1641304475542,27.66479,171.81,171.8,0.65618832]
[1641304475941,27.66479,171.81,171.77,2.26094284]
[1641304475942,3.28094161,171.87,171.79,3.0]
[1641304476143,3.28094161,171.87,171.8,3.0]
[1641304476342,3.28094161,171.87,171.81,3.0]
[1641304476643,3.28094161,171.87,171.82,0.65618832]
[1641304477044,3.28094161,171.87,171.8,2.91713116]
[1641304477246,9.24894161,171.87,171.8,2.91713116]
[1641304477445,9.24894161,171.87,171.81,0.65618832]
[1641304477647,27.66479,171.82,171.81,2.91713116]
[1641304478546,27.66479,171.82,171.81,5.91713116]
[1641304478746,32.80750531,171.89,171.81,8.91713116]
[1641304478946,32.80750531,171.89,171.81,7.99613116]
[1641304479147,32.80750531,171.89,171.84,3.0]
[1641304479148,3.28008751,171.88,171.84,3.0]
[1641304479546,3.28008751,171.88,171.85,0.65618832]
[1641304479747,3.28008751,171.88,171.85,5.91318832]
[1641304480047,3.28008751,171.89,171.85,5.91318832]
[1641304480550,3.28008751,171.89,171.86,0.65618832]
[1641304481350,3.28008751,171.89,171.81,3.0]
[1641304481547,27.66479,171.86,171.81,3.0]
[1641304481947,27.66479,171.86,171.82,0.65618832]
[1641304482949,3.28070098,171.85,171.82,0.65618832]
[1641304483149,3.28070098,171.85,171.82,2.91723003]
[1641304483549,27.66479,171.86,171.83,0.65618832]
[1641304483748,39.96613851,171.86,171.83,0.65618832]
[1641304484149,12.30134851,171.86,171.83,3.65618832]
[1641304484356,12.30134851,171.86,171.85,3.0]
[1641304484852,12.30134851,171.88,171.85,0.65618832]
[1641304485053,12.30134851,171.88,171.85,3.65618832]
[1641304485353,12.30134851,171.88,171.85,0.65618832]
[1641304485555,27.66479,171.9,171.85,3.65618832]
[1641304486254,3.27987958,171.89,171.86,0.65618832]
[1641304486655,3.27987958,171.89,171.81,0.65618832]
[1641304486854,3.27987958,171.89,171.82,3.0]
[1641304487054,3.27987958,171.89,171.81,0.65618832]
[1641304487654,3.27987958,171.89,171.85,3.0]
[1641304487855,3.27987958,171.89,171.85,6.395]
[1641304488057,3.27987958,171.89,171.85,9.395]
[1641304488255,3.27987958,171.89,171.85,6.395]
[1641304488457,3.27987958,171.89,171.86,0.65618832]
[1641304488957,27.66479,171.9,171.86,0.65618832]
[1641304489655,27.66479,171.9,171.82,0.65618832]
[1641304489856,27.66479,171.9,171.86,3.0]
[1641304490159,27.66479,171.9,171.84,3.0]
[1641304490357,27.66479,171.9,171.86,3.0]
[1641304490857,27.66479,171.9,171.85,0.65618832]
[1641304491057,27.66479,171.9,171.87,0.65618832]
[1641304491458,27.66479,171.9,171.85,2.91205211]
[1641304492058,1.83832942,171.89,171.86,2.91205211]
[1641304492458,1.83832942,171.89,171.87,0.65618832]
[1641304492957,1.83832942,171.89,171.88,3.0]
[1641304493360,1.83832942,171.89,171.87,0.65618832]
[1641304493559,7.33932942,171.89,171.87,0.65618832]
[1641304494160,7.33932942,171.89,171.86,0.65618832]
[1641304494362,1.83832942,171.88,171.86,0.65618832]
[1641304495563,1.83832942,171.88,171.85,3.0]
[1641304495964,1.83832942,171.88,171.86,0.65618832]
[1641304496164,12.30134851,171.88,171.86,0.65618832]
[1641304496965,12.30134851,171.88,171.86,3.65618832]
[1641304497366,12.30134851,171.88,171.87,0.65618832]
[1641304497566,1.83832942,171.89,171.87,0.65618832]
[1641304500271,3.28001092,171.88,171.87,0.65618832]
[1641304500672,15.58135943,171.88,171.85,0.65618832]
[1641304501373,3.28001092,171.87,171.85,0.65618832]
[1641304501773,1.83832942,171.87,171.85,0.65618832]
[1641304502378,12.30134851,171.88,171.85,0.65618832]
[1641304503077,3.28017666,171.87,171.85,0.65618832]
[1641304503880,9.20917666,171.87,171.81,3.0]
[1641304504078,1.83832942,171.86,171.8,15.30134851]
[1641304504278,1.83832942,171.86,171.8,12.30134851]
[1641304504478,1.83832942,171.86,171.83,3.0]
[1641304505179,1.83832942,171.86,171.84,0.65611181]
[1641304505382,14.13967793,171.86,171.84,0.65611181]
[1641304505679,27.66479,171.85,171.84,0.65611181]
[1641304506079,27.66479,171.85,171.83,0.65611181]
[1641304506480,29.50311942,171.85,171.83,0.65611181]
[1641304507179,1.83832942,171.85,171.84,3.0]
[1641304507380,12.30134851,171.87,171.84,9.372]
[1641304507580,12.30134851,171.87,171.84,6.372]
[1641304507981,12.30134851,171.87,171.85,0.65611181]
[1641304508281,39.96613851,171.9,171.86,3.0]
[1641304508483,39.96613851,171.9,171.87,3.0]
[1641304508882,12.30134851,171.9,171.88,0.65611181]
[1641304509284,27.66479,171.93,171.88,0.65611181]
[1641304509285,12.30134851,171.91,171.88,0.65611181]
[1641304509883,3.27971866,171.9,171.87,3.0]
[1641304510285,3.27971866,171.9,171.88,0.65611181]
[1641304511086,15.58106717,171.9,171.88,0.65611181]
[1641304511588,12.30134851,171.9,171.87,3.0]
[1641304511786,39.96613851,171.9,171.83,0.65611181]
[1641304511985,39.96613851,171.9,171.88,0.65611181]
[1641304512186,39.96613851,171.9,171.88,6.65611181]
[1641304512388,39.96613851,171.9,171.88,6.0]
[1641304512887,39.96613851,171.9,171.89,0.65611181]
[1641304513287,30.9444774,171.9,171.89,0.65611181]
[1641304513888,38.58004038,171.9,171.89,0.65611181]
[1641304514589,43.24317416,171.9,171.89,0.65611181]
[1641304515189,30.9444774,171.9,171.89,0.65611181]
[1641304515390,38.58119783,171.9,171.89,0.65611181]
[1641304516393,43.24351386,171.9,171.89,0.65611181]
[1641304516795,39.96382646,171.9,171.89,0.65611181]
[1641304516994,27.66479,171.9,171.89,0.65611181]
[1641304517193,12.29839125,171.91,171.89,0.65611181]
[1641304517994,27.66479,171.93,171.89,0.65611181]
[1641304517995,7.63476693,171.92,171.89,0.65611181]
[1641304518595,3.27952862,171.91,171.89,0.65611181]
[1641304518795,3.27952862,171.91,171.9,3.0]
[1641304518796,15.57789441,171.91,171.9,3.0]
[1641304518998,7.63476693,171.92,171.9,8.319]
[1641304519296,32.80750531,171.95,171.91,3.0]
[1641304519496,32.80750531,171.95,171.93,3.0]
[1641304519699,32.80750531,171.99,171.93,3.0]
[1641304519897,27.66479,171.98,171.92,3.0]
[1641304520098,33.36979,171.98,171.94,0.65580351]
[1641304520299,36.64880753,171.98,171.94,0.65580351]
[1641304520599,3.27901753,171.97,171.93,0.65580351]
[1641304521398,3.27901753,171.97,171.9,0.65580351]
[1641304522401,3.27901753,171.97,171.95,3.0]
[1641304522601,3.27901753,171.97,171.96,3.0]
[1641304522802,3.27901753,171.97,171.96,3.65580351]
[1641304523001,3.27901753,171.97,171.96,0.65580351]
[1641304523701,3.27901753,171.97,171.94,3.0]
[1641304523901,27.66479,171.95,171.94,3.0]
[1641304525101,30.94408283,171.95,171.94,3.0]
[1641304525704,30.94408283,171.95,171.88,6.0]
[1641304525904,27.66479,171.89,171.88,6.0]
[1641304526104,33.03079,171.89,171.88,6.0]
[1641304526306,33.03079,171.89,171.85,3.0]
[1641304526506,33.03079,171.89,171.83,3.0]
[1641304526705,33.03079,171.89,171.86,3.0]
[1641304527107,33.03079,171.89,171.78,92.60960531]
[1641304527308,26.47130993,171.89,171.78,95.60960531]
[1641304527508,26.47130993,171.89,171.84,3.0]
[1641304527909,26.47130993,171.89,171.79,2.26116889]
[1641304528308,3.28045841,171.88,171.79,5.26116889]
[1641304528510,3.28045841,171.88,171.87,3.0]
[1641304528709,32.80750531,171.91,171.87,3.0]
[1641304528909,32.80750531,171.91,171.82,6.187]
[1641304529411,60.4814,171.95,171.89,3.0]
[1641304529610,32.80750531,171.96,171.86,4.984]
[1641304529809,96.58430531,171.96,171.86,4.984]
[1641304530010,27.66479,171.94,171.89,3.0]
[1641304530412,27.66479,171.94,171.87,2.26116889]
[1641304530610,3.27963017,171.93,171.87,2.26116889]
[1641304530811,3.27963017,171.93,171.92,3.0]
[1641304531012,3.27963017,171.93,171.92,9.452]
[1641304531211,32.80750531,171.99,171.92,9.452]
[1641304531414,32.80750531,171.99,171.92,6.452]
[1641304531616,3.27884429,171.98,171.94,3.0]
[1641304531814,3.27884429,171.98,171.97,3.0]
[1641304532114,32.80750531,171.99,171.97,8.56]
[1641304532312,32.80750531,172.02,171.98,3.0]
[1641304532513,32.80750531,172.02,171.97,5.56]
[1641304532912,3.27809467,172.01,172.0,3.0]
[1641304533112,3.27809467,172.01,171.97,5.56]
[1641304533313,3.27809467,172.01,171.94,30.66479]
[1641304533713,3.27809467,172.01,172.0,3.0]
[1641304533914,3.27809467,172.04,172.0,3.0]
[1641304534115,3.27809467,172.04,172.01,3.0]
[1641304534919,36.08559998,172.04,172.01,3.0]
[1641304535519,3.27809467,172.03,171.99,3.0]
[1641304535919,3.27809467,172.03,171.98,3.0]
[1641304536119,27.66479,172.0,171.98,3.0]
[1641304536318,33.00579,172.0,171.98,3.0]
[1641304536519,3.27809467,171.99,171.97,7.09754118]
[1641304536719,3.27809467,171.99,171.97,13.09754118]
[1641304536921,3.27809467,171.99,171.97,9.0]
[1641304537622,3.27809467,171.99,171.96,3.0]
[1641304537822,1.71600116,171.98,171.96,3.0]
[1641304538023,1.71600116,171.98,171.97,3.0]
[1641304538623,4.99409583,171.98,171.97,3.0]
[1641304538823,4.99409583,171.98,171.94,4.09754118]
[1641304539023,4.99409583,171.98,171.96,3.0]
[1641304539024,9.85009583,171.98,171.96,3.0]
[1641304539322,9.85009583,171.98,171.97,3.65572959]
[1641304539523,4.856,171.98,171.97,3.65572959]
[1641304539723,4.856,171.98,171.97,0.65572959]
[1641304539924,4.856,171.98,171.97,3.65572959]
[1641304540123,4.856,171.98,171.97,3.0]
[1641304540524,4.856,171.98,171.97,3.65572959]
[1641304540724,27.66479,172.0,171.97,3.65572959]
[1641304540925,27.66479,172.0,171.97,0.65572959]
[1641304541226,27.66479,172.0,171.99,3.0]
[1641304541826,27.66479,172.0,171.99,0.65572959]
[1641304542227,27.66479,172.0,171.98,0.65572959]
[1641304542429,27.66479,172.0,171.99,3.0]
[1641304542629,65.5158,172.07,171.99,3.0]
[1641304542829,65.5158,172.07,171.96,3.0]
[1641304543127,65.5158,172.07,172.0,0.65572959]
[1641304543527,65.5158,172.07,172.0,2.959e-05]
[1641304543727,19.67089781,172.06,171.99,2.959e-05]
[1641304544127,19.67089781,172.06,171.96,4.09754118]
[1641304544329,27.66479,171.98,171.96,7.09754118]
[1641304544527,27.66479,171.98,171.97,3.0]
[1641304545127,27.66479,171.98,171.97,3.65566267]
[1641304545328,27.66479,171.98,171.97,0.65566267]
[1641304547028,27.66479,171.98,171.96,0.65566267]
[1641304547328,32.38679,171.98,171.96,3.65566267]
[1641304547928,32.38679,171.98,171.97,0.65566267]
[1641304548229,32.38679,171.98,171.96,3.0]
[1641304548429,32.38679,171.98,171.97,3.0]
[1641304548629,32.38679,171.98,171.97,3.65566267]
[1641304549129,27.66479,171.98,171.97,3.65566267]
[1641304549630,12.29415139,171.98,171.97,3.65566267]
[1641304550032,12.29415139,171.98,171.97,0.65566267]
[1641304550430,39.95894139,171.98,171.95,0.65566267]
[1641304551030,39.95894139,171.98,171.97,3.0]
[1641304551431,39.95894139,171.98,171.96,3.0]
[1641304551632,39.95894139,171.98,171.97,3.65566267]
[1641304552433,12.29415139,171.98,171.97,3.65566267]
[1641304553034,12.29415139,171.99,171.97,3.65566267]
[1641304553436,12.29415139,171.99,171.98,0.65566267]
[1641304554435,39.95894139,171.99,171.96,3.00006267]
[1641304554834,27.66479,171.99,171.96,3.0]
[1641304555034,27.66479,171.99,171.93,4.09754118]
[1641304555235,27.66479,171.99,171.98,3.0]
[1641304555634,27.66479,171.99,171.98,0.65573309]
[1641304555833,30.94345543,171.99,171.98,0.65573309]
[1641304556233,30.94345543,171.99,171.97,3.0]
[1641304556634,27.66479,171.99,171.98,3.65573309]
[1641304559338,27.66479,171.99,171.98,0.65573309]
[1641304559738,27.66479,171.99,171.94,4.09754118]
[1641304559938,27.66479,171.99,171.96,3.0]
[1641304560639,27.66479,171.99,171.97,0.65575597]
[1641304562040,27.66479,171.99,171.93,3.0]
[1641304562239,33.25679,171.99,171.93,3.0]
[1641304562641,27.66479,171.94,171.93,3.0]
[1641304563241,27.66479,171.94,171.93,3.65582526]
[1641304563742,27.66479,171.94,171.93,0.65582526]
[1641304564141,27.66479,171.94,171.92,0.65582526]
[1641304564545,27.66479,171.93,171.92,0.65582526]
[1641304564842,27.66479,171.93,171.92,1e-08]
[1641304565743,27.66479,171.93,171.88,3.0]
[1641304565944,27.66479,171.93,171.89,0.65592797]
[1641304566643,27.66479,171.9,171.89,0.65592797]
[1641304566844,27.66479,171.9,171.89,3.65592797]
[1641304567051,27.66479,171.93,171.89,10.13499235]
[1641304567245,27.66479,171.93,171.91,3.0]
[1641304567648,27.66479,171.93,171.92,0.65592797]
[1641304568049,27.66479,171.93,171.92,2.797e-05]
[1641304568550,55.32958,171.93,171.92,2.797e-05]
[1641304568750,55.32958,171.93,171.86,4.09754118]
[1641304569552,55.32958,171.93,171.88,3.0]
[1641304569750,55.32958,171.93,171.89,3.0]
[1641304569951,55.32958,171.93,171.89,0.65607887]
[1641304570350,55.32958,171.93,171.87,0.65607887]
[1641304570752,27.66479,171.89,171.87,0.65607887]
[1641304571159,27.66479,171.89,171.87,4.75362005]
[1641304571656,27.66479,171.89,171.88,0.65607887]
[1641304572056,39.96385088,171.89,171.88,0.65607887]
[1641304572455,39.96385088,171.89,171.86,0.65607887]
[1641304574156,27.66479,171.89,171.86,7.75362005]
[1641304574658,27.66479,171.89,171.87,0.65607887]
[1641304575156,27.66479,171.89,171.87,7.13509453]
[1641304575556,27.66479,171.89,171.88,0.65607887]
[1641304576758,39.96385088,171.89,171.88,0.65607887]
[1641304577358,39.96385088,171.89,171.86,0.65607887]
[1641304577558,46.54485088,171.89,171.86,0.65607887]
[1641304577963,12.29906088,171.87,171.86,0.65607887]
[1641304578559,12.29906088,171.87,171.84,0.65607887]
[1641304578761,27.66479,171.85,171.84,0.65607887]
[1641304578961,27.66479,171.85,171.84,4.75362005]
[1641304579161,32.50979,171.85,171.84,4.75362005]
[1641304580162,32.50979,171.85,171.84,7.13494905]
[1641304580361,32.50979,171.85,171.84,10.13494905]
[1641304580662,32.50979,171.85,171.84,6.03740787]
[1641304581263,32.50979,171.85,171.84,3.03740787]
[1641304581466,32.50979,171.85,171.84,7.13776825]
[1641304582265,32.50979,171.85,171.76,32.80750531]
[1641304582867,27.66479,171.77,171.76,32.80750531]
[1641304583270,27.66479,171.77,171.73,3.0]
[1641304583468,27.66479,171.77,171.76,0.65638642]
[1641304584068,27.66479,171.77,171.75,0.65638642]
[1641304584271,33.08979,171.77,171.75,0.65638642]
[1641304585069,33.08979,171.77,171.74,3.0]
[1641304585269,33.08979,171.77,171.7,0.65638642]
[1641304585469,33.08979,171.77,171.75,0.65638642]
[1641304585870,33.08979,171.77,171.75,3.0]
[1641304586071,33.08979,171.77,171.73,0.65638642]
[1641304586269,33.08979,171.77,171.76,0.65638642]
[1641304586871,33.08979,171.77,171.74,0.65638642]
[1641304587272,33.08979,171.77,171.74,3.65638642]
[1641304587770,33.08979,171.77,171.75,0.65638642]
[1641304587972,26.52548241,171.77,171.75,0.65638642]
[1641304590374,21.10048241,171.77,171.75,0.65638642]
[1641304590675,21.10048241,171.77,171.76,3.0]
[1641304590975,21.10048241,171.77,171.75,3.65638642]
[1641304591175,21.10048241,171.77,171.75,0.65638642]
[1641304591375,21.10048241,171.77,171.76,3.0]
[1641304591575,21.10048241,171.77,171.75,3.65638642]
[1641304591775,21.10048241,171.77,171.76,0.65638642]
[1641304592175,32.80750531,171.83,171.76,6.65638642]
[1641304592377,32.80750531,171.83,171.82,3.0]
[1641304592575,32.80750531,171.83,171.8,4.317]
[1641304592974,60.47229531,171.83,171.81,0.65638642]
[1641304593175,60.47229531,171.83,171.81,3.65638642]
[1641304593477,27.66479,171.83,171.81,0.65638642]
[1641304594881,27.66479,171.83,171.82,3.0]
[1641304595081,60.47229531,171.86,171.82,3.0]
[1641304595280,27.66479,171.86,171.84,3.0]
[1641304595481,27.66479,171.86,171.77,0.65638642]
[1641304595682,27.66479,171.86,171.83,0.65638642]
[1641304596083,3.28181813,171.85,171.83,8.642e-05]
[1641304596282,3.28181813,171.85,171.78,3.0]
[1641304596686,3.28181813,171.85,171.74,66.6603]
[1641304596885,67.53621813,171.85,171.74,63.6603]
[1641304597085,27.66479,171.82,171.74,63.6603]
[1641304597387,27.66479,171.82,171.75,0.65639419]
[1641304597784,27.66479,171.82,171.73,27.66479]
[1641304597785,27.66479,171.82,171.74,0.65639419]
[1641304597985,27.66479,171.82,171.8,3.0]
[1641304598586,27.66479,171.82,171.81,0.65639419]
[1641304598986,30.94671396,171.82,171.81,0.65639419]
[1641304599386,30.94671396,171.82,171.81,3.65639419]
[1641304599586,30.94671396,171.82,171.81,3.0]
[1641304599788,30.94671396,171.82,171.81,0.65639419]
[1641304600290,63.75421927,171.82,171.77,3.0]
[1641304600489,63.75421927,171.82,171.71,61.8889]
[1641304600688,60.47229531,171.82,171.71,64.8889]
[1641304600888,60.47229531,171.82,171.77,3.0]
[1641304601290,60.47229531,171.82,171.72,3.0]
[1641304601490,67.25629531,171.82,171.71,89.55369]
[1641304601690,3.28229024,171.81,171.78,0.65645805]
[1641304601989,36.08979555,171.81,171.72,0.65645805]
[1641304602192,36.08979555,171.81,171.75,3.0]
[1641304602389,3.28229024,171.8,171.72,0.65645805]
[1641304602992,27.66479,171.78,171.72,0.65645805]
[1641304603292,33.80979,171.78,171.72,0.65645805]
[1641304603494,33.80979,171.78,171.72,3.65645805]
[1641304603692,33.80979,171.78,171.72,0.65645805]
[1641304604094,3.28291204,171.77,171.72,0.65645805]
[1641304604495,3.28291204,171.77,171.72,3.65645805]
[1641304604694,3.28291204,171.77,171.72,0.65645805]
[1641304604894,3.28291204,171.77,171.73,0.65645805]
[1641304605096,27.66479,171.74,171.73,0.65645805]
[1641304605795,27.66479,171.74,171.73,3.65645805]
[1641304606294,27.66479,171.74,171.73,0.65645805]
[1641304606894,27.66479,171.74,171.73,3.65645805]
[1641304607295,27.66479,171.74,171.73,0.65645805]
[1641304607596,33.37179,171.74,171.73,0.65645805]
[1641304607795,33.37179,171.74,171.72,0.65645805]
[1641304610394,33.37179,171.74,171.73,3.0]
[1641304610797,33.37179,171.74,171.73,3.65645805]
[1641304610996,33.37179,171.74,171.73,0.65645805]
[1641304611200,33.37179,171.74,171.73,3.65645805]
[1641304612498,27.66479,171.74,171.73,3.65645805]
[1641304613500,12.31114178,171.75,171.73,3.65645805]
[1641304613901,12.31114178,171.75,171.74,0.65645805]
[1641304614603,12.31114178,171.75,171.74,3.65645805]
[1641304614802,12.31114178,171.75,171.74,3.0]
[1641304615202,43.25910584,171.75,171.74,0.65645805]
[1641304615605,43.25910584,171.75,171.74,3.0]
[1641304615805,39.10376221,171.75,171.73,0.65645805]
[1641304616005,39.10376221,171.75,171.74,0.65645805]
[1641304616905,39.10376221,171.75,171.72,3.65645805]
[1641304617306,35.82058815,171.75,171.73,0.65645805]
[1641304618110,3.28335277,171.74,171.72,0.65645805]
[1641304618409,12.31245921,171.73,171.72,3.65645805]
[1641304621214,39.97724921,171.73,171.72,3.65645805]
[1641304621616,27.66479,171.73,171.72,3.65645805]
[1641304622413,27.66479,171.73,171.72,0.65645805]
[1641304624914,30.94822506,171.73,171.72,0.65645805]
[1641304625515,30.94822506,171.73,171.72,3.65645805]
[1641304626814,32.96590634,171.73,171.72,3.65645805]
[1641304627614,41.12471765,171.73,171.72,3.65645805]
[1641304628214,41.12471765,171.73,171.72,0.65645805]
[1641304628814,41.12471765,171.73,171.72,9.65645805]
[1641304629215,13.45992765,171.73,171.72,9.65645805]
[1641304629416,32.80750531,171.75,171.72,12.65645805]
[1641304629616,32.80750531,171.75,171.74,3.0]
[1641304630318,12.31102011,171.76,171.74,3.0]
[1641304630615,12.31102011,171.76,171.74,3.65651195]